[Event "USA Championship 2022"]
[Site "Saint Louis"]
[Date "2022.10.06"]
[Round "2.4"]
[White "Moradiabadi, Elshan"]
[Black "Liang, Awonder"]
[Result "1-0"]
[ECO "C94"]
[WhiteElo "2534"]
[BlackElo "2608"]
[Annotator "TA"]
[PlyCount "121"]
[EventDate "2022.09.05"]
[EventType "tourn"]
[EventCountry "USA"]
[SourceTitle "playchess.com"]
[Source "ChessBase"]
[SourceQuality "1"]
[TimeControl "40/5400+30:1800+30"]

{[%evp 20,121,28,10,11,6,11,8,51,52,72,55,67,63,67,60,55,62,125,113,115,141,206,193,229,232,223,229,238,238,376,370,483,464,506,506,495,504,493,489,490,571,555,562,580,548,571,459,534,599,691,682,641,711,1452,1433,1352,1268,1456,1654,1577,1577,1423,1376,1049,940,973,991,881,752,751,751,5057,730,720,568,994,751,966,939,888,897,856,828,1033,1005,1000,1000,999,965,854,762,1233,781,1740,1593,1356,772,1657,1312,5173,5173,4133,2895]} 1. e4 {[%emt 0:00:08]} e5 {[%emt 0:00:01]} 2. Nf3 {[%emt 0:00:07]} Nc6 {[%emt 0:00:08]} 3. Bb5 {[%emt 0:00:05][%cal Bf1b5,Bb5a4,Ba4b3][%mdl 32]} a6 {[%emt 0:00:06]} 4. Ba4 {[%emt 0:00:03]} Nf6 {[%emt 0:00:08]} 5. O-O {[%emt 0:00:08]} Be7 {[%emt 0:00:06]} 6. Re1 {[%emt 0:00:04]} b5 {[%emt 0:00:09]} 7. Bb3 {[%emt 0:00:02]} d6 {[%emt 0:00:04]} 8. c3 {[%emt 0:00:03]} O-O {[%emt 0:00:11]} 9. h3 {[%emt 0:00:01]} Bb7 {[%emt 0:00:10]} 10. a4 {[%emt 0:00:14]} Nb8 {[%emt 0:12:26]} 11. d3 {[%emt 0:10:34]} Nbd7 {[%emt 0:01:17] C94: Closed Ruy Lopez: Breyer Variation with 10 d3.} 12. Na3 {[%emt 0:06:27][%cal Bb1a3,Ba3c2,Bc2e3][%mdl 32]} c5 {[%emt 0:03:57][%cal Oc5c4]} 13. Bg5 {[%emt 0:03:29] [#]} Qb6 $146 {[%emt 0:09:55] The position is equal.} (13... c4 $5 14. dxc4 bxc4 $14) ({Predecessor:} 13... Bc6 14. Nc2 Nb6 15. axb5 axb5 16. Rxa8 Bxa8 17. Ne3 Nfd7 18. Bxe7 Qxe7 19. Nf5 Qf6 {½-½ (48) Lampert,J (2489)-Osmanodja,F (2296) Wunsiedel 2016}) 14. Nc2 {[%emt 0:04:22]} c4 {[%emt 0:20:12]} 15. dxc4 {[%emt 0:11:18]} Nc5 {[%emt 0:01:39]} 16. Bxf6 {[%emt 0:06:54]} Bxf6 {[%emt 0:00:10]} 17. a5 {[%emt 0:00:07]} Qc7 {[%emt 0:21:08]} 18. Ne3 {[%emt 0:01:46] Black must now prevent cxb5.} (18. Ba2 {is interesting.} Bxe4 19. Rxe4 Nxe4 20. cxb5 axb5 21. Bd5) 18... Nxb3 {[%emt 0:01:35] Black is on the road to losing.} ({Black should play} 18... bxc4 $14 19. Bxc4 Nxe4) 19. Qxb3 $16 {[%emt 0:00:02]} Bxe4 {[%emt 0:00:06]} 20. cxb5 {[%emt 0:00:20]} axb5 {[%emt 0:01:50]} (20... Bxf3 $16 {keeps fighting.} 21. gxf3 Qd7) 21. Qxb5 $18 {[%emt 0:01:31]} Bxf3 {[%emt 0:03:45]} 22. gxf3 {[%emt 0:00:08][%cal Bg2f3,Bf3f4][%mdl 32]} Rfb8 {[%emt 0:00:02]} 23. Qc4 {[%emt 0:01:48]} Qd7 {[%emt 0:01:58]} 24. b4 {[%emt 0:01:49]} e4 {[%emt 0:01:53]} (24... Qxh3 {is a better defense.} 25. Qg4 Qxg4+ 26. fxg4 Ra6) 25. Nd5 {[%emt 0:02:41]} Qxh3 {[%emt 0:04:41]} 26. Qxe4 {[%emt 0:00:24] White is clearly winning.} ({Less strong is} 26. Nxf6+ gxf6 27. Rxe4 (27. Qxe4 $2 Kh8 $19) 27... Kh8 $18) 26... Be5 {[%emt 0:00:45] [#] ( -> ...Bh2+)} 27. f4 {[%emt 0:04:04] Active counter play!} Bxc3 {[%emt 0:00:01]} 28. Re3 {[%emt 0:00:16]} Qg4+ {[%emt 0:00:01]} 29. Rg3 {[%emt 0:00:06]} Qxg3+ {[%emt 0:00:01]} 30. fxg3 {[%emt 0:00:07]} Bxa1 {[%emt 0:00:02]} 31. Qd3 {[%emt 0:01:34]} Bf6 {[%emt 0:01:35]} 32. a6 {[%emt 0:01:50]} Bd8 {[%emt 0:01:39]} 33. b5 {[%emt 0:01:42]} h6 {[%emt 0:01:37]} 34. Kg2 {[%emt 0:01:41]} Bb6 {[%emt 0:01:59]} 35. f5 {[%emt 0:02:04]} Bc5 {[%emt 0:01:07]} 36. f6 {[%emt 0:00:17]} gxf6 {[%emt 0:03:35]} 37. Nxf6+ {[%emt 0:00:26]} Kg7 {[%emt 0:00:05]} 38. Nd7 {[%emt 0:03:20]} Re8 {[%emt 0:02:05]} 39. Qc3+ {[%emt 0:01:51]} Kh7 {[%emt 0:00:02]} 40. Nf6+ {[%emt 0:00:07]} Kg6 {[%emt 0:00:04]} 41. Nxe8 {[%emt 0:30:16]} Rxe8 {[%emt 0:30:02][%mdl 4096] Endgame KQ-KRB} 42. Qd3+ {[%emt 0:01:11]} Kg7 {[%emt 0:02:51]} 43. Qf3 {[%emt 0:02:13]} Re3 {[%emt 0:04:16]} 44. Qb7 {[%emt 0:01:48] Strongly threatening a7.} Rb3 {[%emt 0:00:03]} 45. Qc6 {[%emt 0:02:17]} Kg6 {[%emt 0:01:36]} 46. Kh3 {[%emt 0:02:18]} (46. a7 $142 Rb2+ 47. Kh3 Bxa7 48. Qxd6+ Kh7 49. Qe7) 46... Kg7 {[%emt 0:00:53]} 47. Qe8 {[%emt 0:01:58]} Re3 {[%emt 0:00:00]} 48. Qc8 {[%emt 0:00:00]} Ra3 {[%emt 0:00:00]} 49. Qg4+ {[%emt 0:00:00]} Kf8 {[%emt 0:00:00]} 50. Qf4 {[%emt 0:00:00]} Kg7 {[%emt 0:00:00]} 51. Kg4 {[%emt 0:00:00]} Re3 {[%emt 0:00:00]} 52. Qa4 {[%emt 0:00:00]} Re5 {[%emt 0:00:00]} 53. Qa5 {[%emt 0:00:00]} Bf2 {[%emt 0:00:00]} 54. Qc3 {[%emt 0:00:00]} Bc5 {[%emt 0:00:00]} 55. Qc4 {[%emt 0:00:00]} Kf6 {[%emt 0:00:00]} 56. Kh3 {[%emt 0:00:00] Threatens to win with Qb3.} Rh5+ {[%emt 0:00:00] [#]} 57. Kg2 $1 {[%emt 0:00:00]} Re5 {[%emt 0:00:00]} 58. Qg4 {[%emt 0:00:00]} Re3 {[%emt 0:00:00]} 59. Qa4 {[%emt 0:00:00] aiming for a7.} Ba7 {[%emt 0:00:00]} 60. Qb4 {[%emt 0:00:00]} Bc5 {[%emt 0:00:00]} 61. Qb2+ {[%emt 0:00:00] Weighted Error Value: White=0.23 (precise) /Black=0.37} 1-0

[Event "USA Championship 2022"]
[Site "Saint Louis"]
[Date "2022.10.06"]
[Round "2.5"]
[White "Aronian, Levon"]
[Black "Dominguez Perez, Leinier"]
[Result "1/2-1/2"]
[ECO "C42"]
[WhiteElo "2755"]
[BlackElo "2747"]
[Annotator "TA"]
[PlyCount "67"]
[EventDate "2022.09.05"]
[EventType "tourn"]
[EventCountry "USA"]
[SourceTitle "playchess.com"]
[Source "ChessBase"]
[SourceQuality "1"]
[TimeControl "40/5400+30:1800+30"]

{[%evp 16,67,27,27,29,36,36,35,29,41,49,9,9,9,8,8,66,58,87,57,79,41,60,28,93,94,89,74,82,69,79,65,77,68,87,83,81,0,0,0,0,0,0,0,0,0,0,0,0,0,0,0,0,0]} 1. e4 {[%emt 0:00:03]} e5 {[%emt 0:00:50]} 2. Nf3 {[%emt 0:00:07]} Nf6 {[%emt 0:00:11]} 3. Nxe5 {[%emt 0:00:06]} d6 {[%emt 0:00:07]} 4. Nf3 {[%emt 0:00:05]} Nxe4 {[%emt 0:00:08]} 5. d4 {[%emt 0:00:04]} d5 {[%emt 0:00:07]} 6. Bd3 {[%emt 0:00:07]} Nc6 {[%emt 0:00:33]} 7. O-O {[%emt 0:00:07]} Be7 {[%emt 0:00:05]} 8. Nbd2 $1 {[%emt 0:00:32][%mdl 4] now scores much better than the old 8.c4.} Bf5 {[%emt 0:00:09]} 9. Re1 {[%emt 0:00:08][%cal Rd2e4]} Nxd2 {[%emt 0:00:08] C42: Petroff Defence: 3 Nxe5 and unusual White 3rd moves.} 10. Qxd2 {[%emt 0:00:04]} Qd7 {[%emt 0:00:27]} 11. Bxf5 {[%emt 0:02:16]} Qxf5 {[%emt 0:00:10] White is slightly better.} 12. Ne5 {[%emt 0:00:07]} Nd8 {[%emt 0:00:08] [#]} 13. Qc3 $146 {[%emt 0:01:53]} ({Predecessor:} 13. Qa5 c6 14. Bd2 O-O 15. Bb4 Bxb4 16. Qxb4 Ne6 17. Qxb7 Rab8 18. Qxa7 Rxb2 19. Nxc6 Qxc2 {0-1 (25) Vokhidov,S (2552)-Nepomniachtchi,I (2792) Chess.com INT 2022}) 13... Ne6 {[%emt 0:01:17]} 14. Bd2 {[%emt 0:11:48]} Bd6 {[%emt 0:01:13]} 15. Re3 {[%emt 0:10:51]} O-O-O {[%emt 0:34:42]} (15... O-O $11) 16. Rae1 $36 {[%emt 0:07:51][%cal Oe5f7][%mdl 2048] Black is under pressure.} Bxe5 {[%emt 0:10:32]} 17. Rxe5 {[%emt 0:00:15]} Qg4 {[%emt 0:00:08]} 18. f4 {[%emt 0:09:01]} g6 {[%emt 0:00:08]} 19. Qe3 {[%emt 0:15:33]} Kb8 {[%emt 0:18:02]} (19... Rhe8 $11) 20. Qf2 $16 {[%emt 0:05:33] [#] aiming for h3.} Ng7 {[%emt 0:00:09]} 21. f5 {[%emt 0:00:14]} gxf5 {[%emt 0:06:49]} (21... Nxf5 $2 22. h3 Qxd4 {[#]} 23. Rxf5 $1 {[%mdl 512]} Qxf2+ 24. Rxf2 $18) 22. Bh6 {[%emt 0:00:52]} Rhg8 {[%emt 0:14:09]} 23. Bxg7 {[%emt 0:03:08] White is more active.} Rxg7 {[%emt 0:00:02]} 24. Rxf5 {[%emt 0:00:36]} b6 {[%emt 0:02:49]} 25. c3 {[%emt 0:01:37]} Rdg8 {[%emt 0:01:59] And now ...Qh3 would win.} 26. Re2 {[%emt 0:02:55]} (26. g3 $16) 26... Qh3 $1 $11 {[%emt 0:00:47] The position is equal.} 27. Rxf7 {[%emt 0:01:39]} Rxg2+ {[%emt 0:00:09]} 28. Qxg2 {[%emt 0:00:04]} Rxg2+ {[%emt 0:00:05]} 29. Rxg2 {[%emt 0:00:03] KQ-KRR} Qe3+ {[%emt 0:00:17]} 30. Rff2 {[%emt 0:00:54]} Qe1+ {[%emt 0:01:36]} 31. Rf1 {[%emt 0:00:06]} Qe3+ {[%emt 0:00:04]} 32. Rff2 {[%emt 0:01:07]} Qe1+ {[%emt 0:00:07]} 33. Rf1 {[%emt 0:00:03]} Qe3+ {[%emt 0:00:05]} 34. Rff2 {[%emt 0:00:47] Weighted Error Value: White=0.12 (very precise) /Black=0.08 (flawless)} 1/2-1/2

[Event "USA Championship 2022"]
[Site "Saint Louis"]
[Date "2022.10.06"]
[Round "2.6"]
[White "So, Wesley"]
[Black "Yoo, Christopher Woojin"]
[Result "0-1"]
[ECO "C42"]
[WhiteElo "2774"]
[BlackElo "2563"]
[Annotator "TA"]
[PlyCount "96"]
[EventDate "2022.09.05"]
[EventType "tourn"]
[EventCountry "USA"]
[SourceTitle "playchess.com"]
[Source "ChessBase"]
[SourceQuality "1"]
[TimeControl "40/5400+30:1800+30"]

{[%evp 18,96,22,5,33,12,8,0,0,13,26,12,20,34,47,35,45,0,0,0,41,28,41,0,41,25,32,33,58,49,50,70,62,53,66,-8,-7,-19,6,34,37,0,45,30,39,-99,-70,-118,-138,-126,-111,-138,-106,-123,0,0,0,-112,-129,-95,-111,-329,-151,-149,-51,-63,-54,-49,-31,-72,-60,-39,-27,-802,-231,-211,-203,-791,-770,-29987,-29988]} 1. e4 {[%emt 0:00:03]} e5 {[%emt 0:03:30]} 2. Nf3 {[%emt 0:00:48]} Nf6 {[%emt 0:00:05]} 3. Nxe5 {[%emt 0:08:09]} d6 {[%emt 0:00:10]} 4. Nf3 {[%emt 0:00:04]} Nxe4 {[%emt 0:00:03]} 5. d4 {[%emt 0:00:04]} d5 {[%emt 0:00:05]} 6. Bd3 {[%emt 0:00:03]} Bd6 {[%emt 0:00:04]} 7. O-O {[%emt 0:00:25]} O-O {[%emt 0:00:03]} 8. c4 {[%emt 0:05:08]} c6 {[%emt 0:00:05]} 9. Re1 {[%emt 0:06:30]} Bf5 {[%emt 0:00:45]} 10. Qb3 {[%emt 0:02:45]} Qd7 {[%emt 0:00:10] C42: Petroff Defence: 3 Nxe5 and unusual White 3rd moves.} 11. c5 {[%emt 0:01:20]} Bc7 {[%emt 0:00:58] [#]} 12. Qc2 $146 {[%emt 0:00:08]} ({Predecessor:} 12. Nbd2 Re8 13. Nh4 Be6 14. Qc2 Na6 15. a3 Bg4 16. Nxe4 dxe4 17. Rxe4 Rxe4 18. Bxe4 Qxd4 {1-0 (65) Wei,Y (2727)-Dominguez Perez,L (2754) chess24.com INT 2022}) 12... Na6 {[%emt 0:00:15] The position is equal.} 13. a3 {[%emt 0:00:11] Inhibits Nb4.} Bg6 {[%emt 0:01:13]} 14. Nc3 {[%emt 0:05:16][%cal Rc3e4,Bb1c3,Bc3e2,Be2g3][%mdl 32]} f5 {[%emt 0:01:54]} 15. Ne2 {[%emt 0:03:45]} Bh5 {[%emt 0:12:59]} 16. Ng3 $1 {[%emt 0:04:45]} Bg6 {[%emt 0:03:00]} 17. Ne2 {[%emt 0:03:17]} Bh5 $1 {[%emt 0:02:18]} 18. Ng3 {[%emt 0:03:47]} Bg6 {[%emt 0:00:42]} 19. b4 {[%emt 0:06:40]} Rae8 {[%emt 0:04:23]} 20. Bb2 {[%emt 0:08:11]} (20. Ne5 $5 Bxe5 21. dxe5 $14) 20... Re6 {[%emt 0:02:25]} 21. Ne2 {[%emt 0:10:39]} Qe7 {[%emt 0:12:33]} 22. Ne5 {[%emt 0:02:58]} f4 {[%emt 0:01:14][%cal Of4f3]} (22... Qh4 $2 23. g3 Qg5 24. Nf4 $18) 23. Nxg6 {[%emt 0:02:15]} Rxg6 {[%emt 0:02:09]} 24. f3 {[%emt 0:03:51]} (24. Bxe4 dxe4 25. Nc3 e3 $11) 24... Qh4 {[%emt 0:03:52]} 25. Nc3 $1 {[%emt 0:02:08]} (25. Bxe4 dxe4 26. Rf1 e3 $15) 25... Rh6 {[%emt 0:00:33]} 26. h3 {[%emt 0:03:23]} (26. fxe4 Qxh2+ 27. Kf1 f3 28. Qf2 fxg2+ 29. Ke2 Rxf2+ 30. Kd1 Rxb2 31. Ne2 Bf4) ({White should play} 26. Nxe4 $14 Qxh2+ 27. Kf1 dxe4 28. Bxe4) 26... Ng5 $1 $11 {[%emt 0:01:47]} 27. Qf2 {[%emt 0:01:30]} Qh5 {[%emt 0:00:14][%cal Oh5h3]} 28. b5 {[%emt 0:01:55]} Nb8 {[%emt 0:00:14][%cal Oh5h3]} (28... Nxh3+ $2 29. gxh3 Qxh3 30. Qg2 $18) 29. a4 {[%emt 0:01:50]} (29. Re7 $2 Nxh3+ $1 {[%mdl 512]} 30. gxh3 Qg5+ 31. Kh2 Qxe7 $19) 29... Bd8 {[%emt 0:07:54][%cal Oh5h3]} (29... Qxh3 $5 30. Kf1 (30. gxh3 Nxh3+ 31. Kg2 Nxf2 $11) 30... Qd7 $15) 30. Re2 {[%emt 0:02:22]} Qf7 {[%emt 0:04:04][%cal Oh6h3] White must now prevent ...Rxh3!} 31. Kf1 {[%emt 0:01:38]} (31. Qf1 $14 {keeps the upper hand.}) 31... Nd7 $17 {[%emt 0:02:37][%cal Og5h3]} 32. a5 {[%emt 0:00:47] [#]} (32. Rc2 $15) 32... Nxh3 $1 {[%emt 0:02:43][%mdl 512]} 33. gxh3 {[%emt 0:00:06]} Rxh3 {[%emt 0:00:03]} 34. Qg2 {[%emt 0:03:39]} Qh5 {[%emt 0:00:20][%mdl 1024] Black has strong compensation.} 35. Rf2 {[%emt 0:00:54]} Rg3 {[%emt 0:22:37]} (35... Rh1+ 36. Ke2 Qe8+ 37. Kd2 Qe3+ 38. Kc2 Rxa1 39. Bxa1 Qxd4 40. Rd2 Qxc5 41. Qh3 $16) 36. Qh2 {[%emt 0:00:01]} Rh3 {[%emt 0:00:17]} 37. Qg2 {[%emt 0:00:02]} Re8 $1 {[%emt 0:07:33]} (37... Rh1+ 38. Ke2 Qe8+ 39. Kd2 Qe3+ 40. Kc2 Rxa1 41. Bxa1 Qxd4 42. Rd2 Qxc5 43. Qh3 $16) 38. Ne2 {[%emt 0:00:01] aiming for Ng1.} (38. Kg1 $2 Rg3 39. a6 Rxg2+ $19) 38... Re3 $1 {[%emt 0:00:05][%csl LRd3,LRf3] Threatens to win with ...Rh1+.} 39. Ra3 $2 {[%emt 0:00:44] [#]} (39. Kg1 $17 {only move.} Bh4 40. Qxh3 Bxf2+ 41. Kg2 Qxh3+ 42. Kxh3 Rxf3+ 43. Kg2 Rxd3 44. Kxf2) 39... Rh1+ {[%emt 0:02:06]} (39... Bxa5 $1 $19 {[%mdl 512]} 40. Rxa5 Rexf3) 40. Ng1 {[%emt 0:00:02] [#] Hoping for Bc1.} Nf6 {[%emt 0:00:34] Black is much more active. The white rooks are badly placed.} (40... Bxa5 $1 $17 {[%mdl 512] ( -> ...Re1#)} 41. Rxa5 (41. Be2 Rxa3) 41... Rxd3) 41. Bc1 $15 {[%emt 0:19:05]} Qh4 $1 {[%emt 0:01:53] And now ...Nh5 would win. The board is on fire.} 42. Bxe3 {[%emt 0:04:31]} fxe3 {[%emt 0:00:06]} 43. Bxh7+ $1 {[%emt 0:00:09]} Qxh7 {[%emt 0:05:41]} (43... Nxh7 44. Rxe3 Nf8 45. Qg4 $16) 44. Rxe3 {[%emt 0:00:11]} Bc7 {[%emt 0:03:07] Strongly threatening ...Bf4.} 45. Re7 $2 {[%emt 0:08:22][%mdl 8192] [#]} (45. Rb3 $11 Rh2 46. Qg5 Rxf2+ 47. Kxf2 Qc2+ 48. Ne2 Qxb3 49. Qf5 Qxb5 50. Qc8+ Kh7 51. Qxc7) 45... Qb1+ $2 {[%emt 0:05:18]} ({Worse is} 45... Rh2 46. Rxc7 (46. Qg5 Qb1+ 47. Re1 Qxb5+ 48. Ree2 Qb1+ 49. Re1 Qd3+ 50. Ree2 Qd1+ 51. Re1 Qd3+ 52. Ree2 Rxf2+ 53. Kxf2 Qxd4+ 54. Kg2 Qxc5 $11) 46... Qb1+ 47. Ke2 Qc2+ 48. Ke1 Qc1+ 49. Ke2 Qc4+ 50. Ke1 Qb4+ 51. Ke2 Qc4+ 52. Ke1 Qc3+ 53. Kf1 Qc1+ 54. Ke2 Qc2+ 55. Ke1 Qc3+ 56. Kf1 Qc1+ 57. Ke2 $17) (45... Nh5 $1 46. Rd2 (46. f4 Qb1+) 46... Bf4 47. bxc6 Ng3+ 48. Ke1 Bxd2+ 49. Kxd2 Rh2) 46. Re1 $19 {[%emt 0:00:48]} ({Don't blunder} 46. Ke2 $2 Qxb5+ 47. Kd2 Qb2+ 48. Kd3 Qb3+ 49. Ke2 Qc4+ 50. Kd1 Qxd4+ 51. Kc2 Qxc5+ 52. Kd1 Rxg1+ 53. Qxg1 Qxe7 $19) 46... Qd3+ {[%emt 0:00:23]} 47. Rfe2 $2 {[%emt 0:00:07]} (47. Ree2 Nh5 48. Qxh1 Ng3+ 49. Kg2 Nxh1 50. Kxh1) 47... Rh2 {[%emt 0:00:39]} 48. Qg5 {[%emt 0:01:36]} Nh5 {[%emt 0:00:05] Weighted Error Value: White=0.44/Black=0.32} 0-1

[Event "USA Championship 2022"]
[Site "Saint Louis"]
[Date "2022.10.06"]
[Round "2.7"]
[White "Lenderman, Aleksandr"]
[Black "Sevian, Samuel"]
[Result "1/2-1/2"]
[ECO "E04"]
[WhiteElo "2535"]
[BlackElo "2684"]
[Annotator "TA"]
[PlyCount "70"]
[EventDate "2022.09.05"]
[EventType "tourn"]
[EventCountry "USA"]
[SourceTitle "playchess.com"]
[Source "ChessBase"]
[SourceQuality "1"]
[TimeControl "40/5400+30:1800+30"]

{[%evp 23,70,22,20,20,20,14,24,16,20,9,11,10,12,0,0,0,0,0,0,0,0,0,0,0,0,0,0,0,0,0,0,0,0,0,0,0,0,0,0,0,0,0,0,0,0,0,0,0,0]} 1. d4 {[%emt 0:00:05]} Nf6 {[%emt 0:00:10]} 2. c4 {[%emt 0:00:03]} e6 {[%emt 0:00:09]} 3. g3 {[%emt 0:00:04]} d5 {[%emt 0:00:46]} 4. Bg2 {[%emt 0:00:09]} dxc4 {[%emt 0:00:02]} 5. Nf3 {[%emt 0:00:00]} c5 {[%emt 0:00:52]} 6. O-O {[%emt 0:00:00]} Nc6 {[%emt 0:00:30]} 7. dxc5 {[%emt 0:00:28]} Qxd1 {[%emt 0:00:07]} 8. Rxd1 {[%emt 0:00:30]} Bxc5 {[%emt 0:01:18]} 9. Nbd2 {[%emt 0:00:00]} c3 {[%emt 0:00:30]} 10. bxc3 {[%emt 0:00:00]} O-O {[%emt 0:00:30]} 11. Nb3 {[%emt 0:00:00]} Be7 {[%emt 0:00:25]} 12. Nfd4 {[%emt 0:00:00]} Bd7 {[%emt 0:18:30] 12...Nxd4 is more advanced technology.} 13. a4 {E04: Open Catalan: 5 Nf3.} Rfd8 {[%emt 0:18:31]} 14. Nb5 {[%emt 0:01:52] [#]} a6 $146 {[%emt 0:19:06]} ({Predecessor:} 14... Rac8 15. Be3 Nd5 16. Bxd5 exd5 17. Rxd5 Be6 18. Rxd8+ Rxd8 19. N3d4 Nxd4 20. Nxd4 Bc4 {1-0 (68) Nihal,S (2620)-Petrosyan,M (2625) Veliko Gradiste 2021}) 15. Nd6 {[%emt 0:00:58] White has an edge.} Be8 {[%emt 0:04:23] The position is equal.} 16. Ba3 {[%emt 0:04:36]} Bxd6 {[%emt 0:06:21]} 17. Rxd6 {[%emt 0:07:16]} Nd5 {[%emt 0:00:00]} 18. Bxd5 {[%emt 0:04:20]} exd5 {[%emt 0:00:00]} 19. Rxd8 {[%emt 0:16:52]} Nxd8 {[%emt 0:00:00]} 20. Bb4 {[%emt 0:03:16]} Ne6 {[%emt 0:00:00]} 21. a5 {[%emt 0:06:08]} Bb5 {[%emt 0:00:00]} 22. e3 {[%emt 0:00:22]} Rc8 {[%emt 0:00:00]} 23. f3 {[%emt 0:02:06]} h5 {[%emt 0:00:00]} 24. Kf2 {[%emt 0:02:59]} f6 {[%emt 0:00:00]} 25. Nd4 {[%emt 0:00:23]} Nxd4 {[%emt 0:00:00]} 26. exd4 $11 {[%emt 0:00:06][%mdl 4096] Endgame KRB-KRB} Re8 {[%emt 0:00:00]} 27. Re1 {[%emt 0:00:04] Prevents Re2+.} Rxe1 {[%emt 0:00:00]} 28. Kxe1 {[%emt 0:00:04] KB-KB} Kf7 {[%emt 0:00:00]} 29. Bc5 {[%emt 0:00:08]} g5 {[%emt 0:00:00]} 30. Kd2 {[%emt 0:00:08]} Ke6 {[%emt 0:00:00]} 31. Ke3 {[%emt 0:00:05]} Ba4 {[%emt 0:00:00]} 32. Bb6 {[%emt 0:00:09]} Bb5 {[%emt 0:00:00]} 33. Bc5 {[%emt 0:00:07]} Ba4 {[%emt 0:00:00]} 34. Bb6 {[%emt 0:00:05]} Bb5 {[%emt 0:00:00]} 35. Bc5 {[%emt 0:00:03]} Ba4 {[%emt 0:00:08] Not much happened in this game.  Weighted Error Value: White=0.01 (flawless) /Black=0.01 (flawless)} 1/2-1/2

[Event "USA Championship 2022"]
[Site "Saint Louis"]
[Date "2022.10.07"]
[Round "3.1"]
[White "Yoo, Christopher Woojin"]
[Black "Moradiabadi, Elshan"]
[Result "1-0"]
[ECO "E04"]
[WhiteElo "2563"]
[BlackElo "2534"]
[Annotator "TA"]
[PlyCount "77"]
[EventDate "2022.09.05"]
[EventType "tourn"]
[EventCountry "USA"]
[SourceTitle "playchess.com"]
[Source "ChessBase"]
[SourceQuality "1"]
[TimeControl "40/5400+30:1800+30"]

{[%evp 15,77,0,4,6,27,0,4,0,0,2,38,39,52,35,55,20,85,29,23,23,21,-30,-48,-29,-25,-24,-31,-38,-26,-58,0,0,57,45,69,68,125,111,124,126,123,104,179,164,206,206,313,309,306,304,309,204,208,140,227,209,429,402,477,474,489,487,515,495]} 1. d4 {[%emt 0:00:05]} d5 {[%emt 0:00:07]} 2. c4 {[%emt 0:00:09]} e6 {[%emt 0:00:38]} 3. Nf3 {[%emt 0:00:07]} Nf6 {[%emt 0:01:48]} 4. g3 {[%emt 0:00:14]} dxc4 {[%emt 0:02:02]} 5. Bg2 {[%emt 0:00:07]} c5 {[%emt 0:00:03]} 6. Qa4+ {[%emt 0:01:01]} Bd7 {[%emt 0:02:34]} 7. Qxc4 {[%emt 0:00:06]} Bc6 {[%emt 0:00:29]} 8. dxc5 {[%emt 0:01:51]} Nbd7 {[%emt 0:00:31]} 9. Be3 {[%emt 0:05:15] E04: Open Catalan: 5 Nf3.} Rc8 {[%emt 0:08:40][%cal Of8c5]} (9... Bd5 $5 {[%cal Rd5c4]} 10. Qb4 a5 $11) 10. b4 {[%emt 0:05:16]} b6 {[%emt 0:03:52]} 11. O-O {[%emt 0:10:19] The position is equal.} bxc5 {[%emt 0:00:03] [#]} 12. b5 $146 {[%emt 0:00:33]} ({Predecessor:} 12. bxc5 Bxc5 13. Bxc5 Bxf3 14. Bxf3 Rxc5 15. Qa6 Qb6 16. Qxb6 axb6 17. Nd2 O-O 18. Nb3 Rc7 19. Rfc1 Rfc8 20. Rxc7 Rxc7 21. Rd1 {½-½ (21) Katona,A-Veres,E Hungary 1996}) 12... Bb7 {[%emt 0:06:18]} 13. Rd1 {[%emt 0:09:16]} Be7 {[%emt 0:04:08]} 14. a4 {[%emt 0:07:02][%cal Ba2a4,Ba4a5][%mdl 32]} O-O {[%emt 0:07:19]} 15. a5 {[%emt 0:03:43]} Nb6 {[%emt 0:04:15] [#]} 16. Qc2 {[%emt 0:03:48]} (16. Qb3 $1 $16 Nbd5 17. a6) 16... Nbd5 $11 {[%emt 0:00:08]} 17. Bd2 {[%emt 0:00:19]} Qe8 {[%emt 0:00:50]} 18. Qc4 {[%emt 0:03:21]} (18. Na3 $142) 18... Nb4 $1 {[%emt 0:03:43]} 19. Na3 {[%emt 0:02:41]} Ne4 {[%emt 0:03:22]} 20. Bf4 $1 {[%emt 0:00:58]} Bd5 {[%emt 0:03:07]} 21. Qc1 {[%emt 0:00:06]} c4 {[%emt 0:19:38]} 22. Ne5 {[%emt 0:09:05][%cal Bf3e5,Be5c4,Bc4d6][%mdl 32]} Nc5 {[%emt 0:07:18]} (22... Nd6 $15 23. b6 axb6 24. axb6 Bxg2 25. Kxg2 Nd5) 23. Nexc4 {[%emt 0:11:02] Threatens to win with Nd6.} Bxg2 {[%emt 0:08:11]} ({Black should play} 23... Nb3 $11 24. Qb2 Bxc4 25. Nxc4 Nxa1) 24. Nd6 $1 $14 {[%emt 0:03:18]} ({Much weaker is} 24. Kxg2 Nb3 25. Qb2 Nxa1 $15) 24... Bxd6 {[%emt 0:00:04]} 25. Bxd6 {[%emt 0:00:06]} Nb3 {[%emt 0:00:54]} (25... Nb7 $14 26. Qb2 Nxd6 27. Rxd6 Qe7 28. Qxb4 Bd5) 26. Qb2 $16 {[%emt 0:01:00]} Nxa1 {[%emt 0:00:06]} 27. Bxb4 {[%emt 0:01:45] Really sharp!} Ba8 {[%emt 0:02:17][%cal Oc8d8]} 28. Rxa1 $40 {[%emt 0:01:18][%mdl 128] White has strong attack. White is more active.} Qd7 {[%emt 0:01:59]} (28... Qd8 $16 {was necessary.}) 29. Bxf8 $18 {[%emt 0:00:05]} Rxf8 {[%emt 0:01:22]} 30. Rc1 {[%emt 0:01:00]} ({Don't play} 30. f3 Rc8 31. Rc1 h6) 30... a6 {[%emt 0:00:22]} (30... h5 {is a better defense.} 31. f3 h4) 31. b6 {[%emt 0:05:37]} Qd5 {[%emt 0:00:01][%csl Ga8][%cal Rd5h1]} 32. f3 {[%emt 0:00:06]} Qxa5 {[%emt 0:00:04]} 33. Nc4 {[%emt 0:01:06]} Qd5 {[%emt 0:00:48]} 34. Ne3 {[%emt 0:02:11]} Qg5 {[%emt 0:01:31]} (34... Qb5 $16 35. Qxb5 axb5) 35. Kf2 {[%emt 0:00:52] aiming for Rc7.} Qf6 $2 {[%emt 0:05:50]} (35... Qb5 {keeps fighting.} 36. Nc4 Qxb2 37. Nxb2 g5) 36. Qb4 {[%emt 0:01:23]} a5 {[%emt 0:00:58]} 37. Qxa5 {[%emt 0:00:21] White is clearly winning.} Qh6 {[%emt 0:00:04]} 38. h4 {[%emt 0:01:08]} f5 {[%emt 0:00:05] [#]} 39. Qxa8 $3 {[%emt 0:00:39][%mdl 512] Weighted Error Value: White=0.13 (very precise) /Black=0.36} 1-0